[Event "Early-Titled-Tuesday-Blitz-February-20-2024"]
[Site "Chess.com"]
[Date "2024.02.20"]
[Round "8"]
[White "kibromNNN"]
[Black "Ezov"]
[Result "0-1"]
[WhiteElo "1753"]
[BlackElo "2168"]
[TimeControl "180+1"]
[EndTime "9:30:39 PST"]
[Termination "Ezov won by resignation"]

1. d4 {[%clk 0:03:00]} 1... d5 {[%clk 0:02:59.1]} 2. c4 {[%clk 0:03:00.2]} 2...
c6 {[%clk 0:02:58.7]} 3. Nc3 {[%clk 0:02:57.3]} 3... Nf6 {[%clk 0:02:57.9]} 4.
cxd5 {[%clk 0:02:55.8]} 4... cxd5 {[%clk 0:02:58.8]} 5. Bg5 {[%clk 0:02:54.9]}
5... e6 {[%clk 0:02:57.8]} 6. Nf3 {[%clk 0:02:54.3]} 6... Be7 {[%clk 0:02:56.2]}
7. e3 {[%clk 0:02:53.1]} 7... O-O {[%clk 0:02:55.7]} 8. Bd3 {[%clk 0:02:53.3]}
8... h6 {[%clk 0:02:56.1]} 9. Bh4 {[%clk 0:02:51.8]} 9... b6 {[%clk 0:02:54.5]}
10. O-O {[%clk 0:02:51.1]} 10... Bb7 {[%clk 0:02:53.6]} 11. Ne5 {[%clk
0:02:46.4]} 11... Nbd7 {[%clk 0:02:50]} 12. Bg3 {[%clk 0:02:42]} 12... Nxe5
{[%clk 0:02:48]} 13. Bxe5 {[%clk 0:02:40.1]} 13... Ne4 {[%clk 0:02:46.9]} 14.
Rc1 {[%clk 0:02:33]} 14... Rc8 {[%clk 0:02:43.2]} 15. Nxe4 {[%clk 0:02:22.3]}
15... dxe4 {[%clk 0:02:40.9]} 16. Bb5 {[%clk 0:02:19.4]} 16... f6 {[%clk
0:02:25.8]} 17. Bg3 {[%clk 0:02:16.8]} 17... Rxc1 {[%clk 0:02:19.2]} 18. Qxc1
{[%clk 0:02:16.1]} 18... Bd6 {[%clk 0:02:18.8]} 19. Bc4 {[%clk 0:02:11.4]} 19...
Bd5 {[%clk 0:02:14.2]} 20. b3 {[%clk 0:02:02.7]} 20... Bxg3 {[%clk 0:02:10.3]}
21. hxg3 {[%clk 0:02:01.1]} 21... Qd6 {[%clk 0:02:02.1]} 22. Ba6 {[%clk
0:01:58.8]} 22... Rf7 {[%clk 0:01:57.7]} 23. Rd1 {[%clk 0:01:54.9]} 23... Rc7
{[%clk 0:01:52.5]} 24. Qb2 {[%clk 0:01:54.9]} 24... Qc6 {[%clk 0:01:52.4]} 25.
Rd2 {[%clk 0:01:47.9]} 25... Qc1+ {[%clk 0:01:48.8]} 26. Qxc1 {[%clk 0:01:43.9]}
26... Rxc1+ {[%clk 0:01:49.7]} 27. Kh2 {[%clk 0:01:43.3]} 27... Kf7 {[%clk
0:01:47.9]} 28. g4 {[%clk 0:01:37.1]} 28... Ke7 {[%clk 0:01:47.5]} 29. Kg3
{[%clk 0:01:30.4]} 29... g6 {[%clk 0:01:42]} 30. Be2 {[%clk 0:01:24]} 30... Kd6
{[%clk 0:01:36.1]} 31. Rb2 {[%clk 0:01:20]} 31... Kc6 {[%clk 0:01:25.5]} 32. Rd2
{[%clk 0:01:14.2]} 32... b5 {[%clk 0:01:23.1]} 33. Rb2 {[%clk 0:01:08.7]} 33...
b4 {[%clk 0:01:16.2]} 34. Rd2 {[%clk 0:00:58.6]} 34... Rc3 {[%clk 0:01:04.3]}
35. Bd1 {[%clk 0:00:54.5]} 35... Kb5 {[%clk 0:00:51.1]} 36. Rc2 {[%clk
0:00:51.2]} 36... a5 {[%clk 0:00:47.7]} 37. Rxc3 {[%clk 0:00:40.7]} 37... bxc3
{[%clk 0:00:48.6]} 38. Bc2 {[%clk 0:00:39.4]} 38... Kb4 {[%clk 0:00:47.6]} 39.
f3 {[%clk 0:00:34.1]} 39... exf3 {[%clk 0:00:46.7]} 40. gxf3 {[%clk 0:00:32.5]}
40... g5 {[%clk 0:00:45.9]} 41. e4 {[%clk 0:00:29.6]} 41... Bc6 {[%clk
0:00:42.5]} 42. f4 {[%clk 0:00:20.9]} 42... Ka3 {[%clk 0:00:41]} 43. fxg5 {[%clk
0:00:19.5]} 43... hxg5 {[%clk 0:00:41.9]} 44. Kf3 {[%clk 0:00:15.7]} 44... Kb2
{[%clk 0:00:41.3]} 45. Bd3 {[%clk 0:00:14.8]} 45... c2 {[%clk 0:00:40.5]} 46.
Bxc2 {[%clk 0:00:13.3]} 46... Kxc2 {[%clk 0:00:41.4]} 0-1

[Event "Early-Titled-Tuesday-Blitz-February-20-2024"]
[Site "Chess.com"]
[Date "2024.02.20"]
[Round "8"]
[White "adotand"]
[Black "zverr1"]
[Result "1-0"]
[WhiteElo "2922"]
[BlackElo "2546"]
[TimeControl "180+1"]
[EndTime "9:30:40 PST"]
[Termination "adotand won on time"]

1. Nf3 {[%clk 0:03:00.9]} 1... g6 {[%clk 0:03:00]} 2. c4 {[%clk 0:03:01.3]} 2...
Nf6 {[%clk 0:02:57.8]} 3. g3 {[%clk 0:03:01.9]} 3... Bg7 {[%clk 0:02:57.8]} 4.
Bg2 {[%clk 0:03:02.8]} 4... c6 {[%clk 0:02:58.4]} 5. O-O {[%clk 0:03:03.7]} 5...
d5 {[%clk 0:02:58.6]} 6. d3 {[%clk 0:03:02.2]} 6... O-O {[%clk 0:02:58.6]} 7.
Nbd2 {[%clk 0:03:02.8]} 7... Bg4 {[%clk 0:02:57.8]} 8. h3 {[%clk 0:03:02.6]}
8... Bxf3 {[%clk 0:02:58.2]} 9. Bxf3 {[%clk 0:03:03.2]} 9... e6 {[%clk 0:02:59]}
10. Bg2 {[%clk 0:03:03.7]} 10... Nbd7 {[%clk 0:02:58.6]} 11. Qc2 {[%clk
0:03:03.6]} 11... Rc8 {[%clk 0:02:56.9]} 12. Nf3 {[%clk 0:03:03.8]} 12... Qe7
{[%clk 0:02:54.8]} 13. Rb1 {[%clk 0:02:59]} 13... a5 {[%clk 0:02:53.6]} 14. b3
{[%clk 0:02:59.1]} 14... e5 {[%clk 0:02:50.2]} 15. e4 {[%clk 0:02:55.1]} 15...
dxe4 {[%clk 0:02:35.2]} 16. dxe4 {[%clk 0:02:56]} 16... Nc5 {[%clk 0:02:35.9]}
17. Ba3 {[%clk 0:02:56.1]} 17... b6 {[%clk 0:02:33.8]} 18. Rfd1 {[%clk
0:02:54.2]} 18... Rfd8 {[%clk 0:02:29.8]} 19. Ne1 {[%clk 0:02:54]} 19... Bf8
{[%clk 0:02:23.8]} 20. Bb2 {[%clk 0:02:44.7]} 20... Qe6 {[%clk 0:02:19.3]} 21.
Nf3 {[%clk 0:02:42.3]} 21... Nfxe4 {[%clk 0:02:11.3]} 22. Nxe5 {[%clk
0:02:42.5]} 22... f5 {[%clk 0:01:31.8]} 23. Nf3 {[%clk 0:02:33.2]} 23... Bg7
{[%clk 0:01:23.9]} 24. Nd4 {[%clk 0:02:30.1]} 24... Qf7 {[%clk 0:01:11]} 25. a3
{[%clk 0:02:28]} 25... Ne6 {[%clk 0:00:56.1]} 26. Nf3 {[%clk 0:02:17.8]} 26...
Bxb2 {[%clk 0:00:53.6]} 27. Qxb2 {[%clk 0:02:18.7]} 27... Qg7 {[%clk 0:00:52.2]}
28. Ne5 {[%clk 0:02:16.9]} 28... c5 {[%clk 0:00:40.9]} 29. Re1 {[%clk
0:01:50.6]} 29... Rd4 {[%clk 0:00:20.5]} 30. Nf3 {[%clk 0:01:41.9]} 30... Rdd8
{[%clk 0:00:17.5]} 31. Qc2 {[%clk 0:01:38]} 31... Nd4 {[%clk 0:00:08.5]} 32.
Nxd4 {[%clk 0:01:38.2]} 32... Qxd4 {[%clk 0:00:07.9]} 33. Bxe4 {[%clk
0:01:37.7]} 33... fxe4 {[%clk 0:00:08.5]} 34. Rxe4 {[%clk 0:01:38.1]} 34... Qd3
{[%clk 0:00:07.6]} 35. Qxd3 {[%clk 0:01:35.3]} 35... Rxd3 {[%clk 0:00:08.5]} 36.
Re6 {[%clk 0:01:36.1]} 36... Rb8 {[%clk 0:00:08.8]} 37. a4 {[%clk 0:01:33.4]}
37... Kf7 {[%clk 0:00:08.4]} 38. Rbe1 {[%clk 0:01:29.4]} 38... Rxb3 {[%clk
0:00:08.1]} 39. Re7+ {[%clk 0:01:30]} 39... Kf6 {[%clk 0:00:08.2]} 40. R1e6+
{[%clk 0:01:26.5]} 40... Kf5 {[%clk 0:00:06.1]} 41. Kg2 {[%clk 0:01:22.6]} 41...
h5 {[%clk 0:00:06]} 42. Rc6 {[%clk 0:01:17.2]} 42... Rd8 {[%clk 0:00:03.7]} 43.
Rf7+ {[%clk 0:01:17.4]} 43... Ke5 {[%clk 0:00:03.8]} 44. Rxg6 {[%clk 0:01:17.4]}
44... Rb4 {[%clk 0:00:03.1]} 45. Rf4 {[%clk 0:01:15.9]} 45... Rxa4 {[%clk
0:00:02.8]} 46. Rxb6 {[%clk 0:01:16]} 46... Rd4 {[%clk 0:00:02.5]} 47. Rff6
{[%clk 0:01:16.4]} 47... Rdxc4 {[%clk 0:00:02.4]} 48. Rbe6+ {[%clk 0:01:15.9]}
48... Kd5 {[%clk 0:00:02.4]} 49. Rd6+ {[%clk 0:01:15.3]} 49... Ke4 {[%clk
0:00:02.5]} 50. Rfe6+ {[%clk 0:01:16]} 50... Kf5 {[%clk 0:00:02.8]} 51. Rh6
{[%clk 0:01:16.5]} 51... Ke4 {[%clk 0:00:02.3]} 52. Rxh5 {[%clk 0:01:16.5]}
52... Ra1 {[%clk 0:00:02.7]} 53. Rh4+ {[%clk 0:01:15.2]} 53... Ke5 {[%clk
0:00:02.2]} 54. Rhh6 {[%clk 0:01:14.5]} 54... a4 {[%clk 0:00:01.6]} 55. Rhe6+
{[%clk 0:01:13.8]} 55... Kf5 {[%clk 0:00:01.9]} 56. Rf6+ {[%clk 0:01:13.6]}
56... Ke4 {[%clk 0:00:02.3]} 57. g4 {[%clk 0:01:13.3]} 57... Rd4 {[%clk
0:00:01.8]} 58. Ra6 {[%clk 0:01:11.7]} 58... Kd5 {[%clk 0:00:01.5]} 59. g5
{[%clk 0:01:11.4]} 59... Rdd1 {[%clk 0:00:01.3]} 60. Kf3 {[%clk 0:01:10.3]} 1-0

[Event "Early-Titled-Tuesday-Blitz-February-20-2024"]
[Site "Chess.com"]
[Date "2024.02.20"]
[Round "8"]
[White "Natalya_Buksa"]
[Black "TitarovVasiliYouTube"]
[Result "1-0"]
[WhiteElo "2603"]
[BlackElo "2522"]
[TimeControl "180+1"]
[EndTime "9:30:41 PST"]
[Termination "Natalya_Buksa won by resignation"]

1. d4 {[%clk 0:03:00.9]} 1... d5 {[%clk 0:02:59.8]} 2. Nc3 {[%clk 0:03:00.7]}
2... Bf5 {[%clk 0:02:49.3]} 3. Bf4 {[%clk 0:03:00.5]} 3... c6 {[%clk 0:02:49.5]}
4. e3 {[%clk 0:03:00.8]} 4... Nf6 {[%clk 0:02:48.3]} 5. Nf3 {[%clk 0:03:01.3]}
5... e6 {[%clk 0:02:48.2]} 6. Ne5 {[%clk 0:03:01.8]} 6... Nbd7 {[%clk
0:02:47.9]} 7. g4 {[%clk 0:03:02.1]} 7... Bg6 {[%clk 0:02:44.9]} 8. h4 {[%clk
0:03:01.5]} 8... h5 {[%clk 0:01:52.5]} 9. Nxg6 {[%clk 0:02:59.8]} 9... fxg6
{[%clk 0:01:53.4]} 10. Bd3 {[%clk 0:02:50.9]} 10... Kf7 {[%clk 0:01:53.5]} 11.
g5 {[%clk 0:02:46.9]} 11... Ng8 {[%clk 0:01:40.2]} 12. Qf3 {[%clk 0:02:46.4]}
12... Ndf6 {[%clk 0:01:23.7]} 13. gxf6 {[%clk 0:02:43.4]} 13... gxf6 {[%clk
0:01:24.6]} 14. Rg1 {[%clk 0:02:36.9]} 14... Ne7 {[%clk 0:01:24.8]} 15. O-O-O
{[%clk 0:02:33.7]} 15... Nf5 {[%clk 0:01:21.9]} 16. Bxf5 {[%clk 0:02:24.9]}
16... exf5 {[%clk 0:01:22.8]} 17. Qg3 {[%clk 0:02:24.2]} 17... Rg8 {[%clk
0:01:22.1]} 18. f3 {[%clk 0:02:21.8]} 18... Bb4 {[%clk 0:01:21.8]} 19. Nb1
{[%clk 0:02:21.5]} 19... Qa5 {[%clk 0:01:17.7]} 20. a3 {[%clk 0:02:20.1]} 20...
Be7 {[%clk 0:01:18.3]} 21. e4 {[%clk 0:02:19.5]} 21... dxe4 {[%clk 0:01:17.1]}
22. fxe4 {[%clk 0:02:20.1]} 22... fxe4 {[%clk 0:01:18]} 23. Qb3+ {[%clk
0:02:20]} 23... Qd5 {[%clk 0:01:15.8]} 24. Qxb7 {[%clk 0:01:56.5]} 24... Rad8
{[%clk 0:00:57.7]} 25. Nc3 {[%clk 0:01:55.7]} 25... Qf5 {[%clk 0:00:45]} 26.
Rgf1 {[%clk 0:01:55.2]} 26... Qe6 {[%clk 0:00:32.1]} 27. Be5 {[%clk 0:01:46.6]}
27... f5 {[%clk 0:00:31.8]} 28. Nxe4 {[%clk 0:01:45.2]} 28... Rd7 {[%clk
0:00:26.3]} 29. Qb3 {[%clk 0:01:39.5]} 29... Qxb3 {[%clk 0:00:25]} 30. cxb3
{[%clk 0:01:40.4]} 30... Bxh4 {[%clk 0:00:20.5]} 31. Nc5 {[%clk 0:01:39.5]}
31... Re7 {[%clk 0:00:19.7]} 32. Kc2 {[%clk 0:01:36.9]} 32... Bf6 {[%clk
0:00:19.1]} 33. Nd3 {[%clk 0:01:36]} 33... h4 {[%clk 0:00:17.3]} 34. Rf4 {[%clk
0:01:29.4]} 34... Rh8 {[%clk 0:00:16.5]} 35. Rh1 {[%clk 0:01:26.1]} 35... h3
{[%clk 0:00:03.3]} 36. Rf3 {[%clk 0:01:26.2]} 36... h2 {[%clk 0:00:02]} 37. Rf2
{[%clk 0:01:26]} 37... Bxe5 {[%clk 0:00:01.6]} 38. Nxe5+ {[%clk 0:01:25.8]}
38... Kf6 {[%clk 0:00:02.3]} 39. Rfxh2 {[%clk 0:01:22.2]} 39... Rxh2+ {[%clk
0:00:03.2]} 40. Rxh2 {[%clk 0:01:22.7]} 40... c5 {[%clk 0:00:04.1]} 41. Nf3
{[%clk 0:00:55]} 41... Re3 {[%clk 0:00:03.6]} 42. Rf2 {[%clk 0:00:53.1]} 42...
cxd4 {[%clk 0:00:02.4]} 43. Nxd4 {[%clk 0:00:53.2]} 43... Ke5 {[%clk 0:00:02.3]}
44. Nc6+ {[%clk 0:00:52]} 44... Kd6 {[%clk 0:00:01.3]} 45. Nxa7 {[%clk
0:00:51.9]} 45... g5 {[%clk 0:00:01.1]} 46. Rxf5 {[%clk 0:00:51.4]} 46... g4
{[%clk 0:00:01.7]} 47. Rg5 {[%clk 0:00:50.5]} 47... g3 {[%clk 0:00:02.1]} 48. a4
{[%clk 0:00:50.6]} 48... Rf3 {[%clk 0:00:02]} 49. Nb5+ {[%clk 0:00:48]} 49...
Kc6 {[%clk 0:00:02.5]} 50. Nd4+ {[%clk 0:00:48]} 50... Kb6 {[%clk 0:00:02.9]}
51. Nxf3 {[%clk 0:00:48.9]} 51... Ka6 {[%clk 0:00:03.8]} 52. Rxg3 {[%clk
0:00:48.3]} 52... Ka7 {[%clk 0:00:04.7]} 53. Kc3 {[%clk 0:00:48.7]} 53... Ka8
{[%clk 0:00:05.6]} 54. b4 {[%clk 0:00:49.6]} 54... Kb8 {[%clk 0:00:06.5]} 55.
Kc4 {[%clk 0:00:50.1]} 55... Kc8 {[%clk 0:00:07.4]} 56. Kc5 {[%clk 0:00:50.9]}
56... Kd8 {[%clk 0:00:08.3]} 57. b5 {[%clk 0:00:51.8]} 57... Ke8 {[%clk
0:00:09.2]} 1-0

[Event "Early-Titled-Tuesday-Blitz-February-20-2024"]
[Site "Chess.com"]
[Date "2024.02.20"]
[Round "8"]
[White "Larina_Maria"]
[Black "dianamirza"]
[Result "1-0"]
[WhiteElo "2284"]
[BlackElo "1994"]
[TimeControl "180+1"]
[EndTime "9:30:41 PST"]
[Termination "Larina_Maria won by checkmate"]

1. e4 {[%clk 0:03:00.9]} 1... c5 {[%clk 0:02:59.7]} 2. Nc3 {[%clk 0:03:00.7]}
2... e6 {[%clk 0:03:00.3]} 3. Nf3 {[%clk 0:03:00.1]} 3... a6 {[%clk 0:03:00.7]}
4. d4 {[%clk 0:02:58.7]} 4... cxd4 {[%clk 0:03:00.8]} 5. Nxd4 {[%clk 0:02:59.6]}
5... b5 {[%clk 0:03:01.1]} 6. g3 {[%clk 0:02:59.2]} 6... Bb7 {[%clk 0:03:01.2]}
7. Bg2 {[%clk 0:02:59.3]} 7... Nf6 {[%clk 0:03:01.5]} 8. a3 {[%clk 0:02:58.5]}
8... Qc7 {[%clk 0:03:01]} 9. O-O {[%clk 0:02:58]} 9... Be7 {[%clk 0:02:51.6]}
10. Re1 {[%clk 0:02:58.2]} 10... O-O {[%clk 0:02:50.8]} 11. Bg5 {[%clk 0:02:45]}
11... h6 {[%clk 0:02:49.8]} 12. Be3 {[%clk 0:02:35.2]} 12... Nc6 {[%clk
0:02:42.5]} 13. f4 {[%clk 0:02:29.3]} 13... Nxd4 {[%clk 0:02:41.6]} 14. Bxd4
{[%clk 0:02:28.6]} 14... Bc5 {[%clk 0:02:41.8]} 15. h3 {[%clk 0:02:17.7]} 15...
Rac8 {[%clk 0:02:34.9]} 16. Kh2 {[%clk 0:02:14.4]} 16... Bxd4 {[%clk 0:02:35.2]}
17. Qxd4 {[%clk 0:02:15.3]} 17... d5 {[%clk 0:02:30]} 18. e5 {[%clk 0:02:14.5]}
18... Nd7 {[%clk 0:02:21.4]} 19. Qd2 {[%clk 0:02:12.1]} 19... Qc5 {[%clk
0:01:57.9]} 20. Rac1 {[%clk 0:02:08.3]} 20... a5 {[%clk 0:01:57.3]} 21. Ne2
{[%clk 0:02:05]} 21... b4 {[%clk 0:01:54.2]} 22. axb4 {[%clk 0:02:04.5]} 22...
axb4 {[%clk 0:01:54.9]} 23. Nd4 {[%clk 0:02:05]} 23... Nb6 {[%clk 0:01:51.1]}
24. b3 {[%clk 0:02:00.4]} 24... Qc3 {[%clk 0:01:48.6]} 25. Qf2 {[%clk 0:01:33]}
25... Nd7 {[%clk 0:01:22.1]} 26. f5 {[%clk 0:01:23.4]} 26... Nc5 {[%clk
0:01:08.2]} 27. Nb5 {[%clk 0:01:09.1]} 27... Qb2 {[%clk 0:01:05.9]} 28. Nd6
{[%clk 0:00:59]} 28... Nd3 {[%clk 0:01:05.2]} 29. Qd2 {[%clk 0:00:47.2]} 29...
Nxc1 {[%clk 0:01:01.4]} 30. Rxc1 {[%clk 0:00:48.1]} 30... Rc7 {[%clk 0:00:54.2]}
31. f6 {[%clk 0:00:43.5]} 31... Qxe5 {[%clk 0:00:52.4]} 32. fxg7 {[%clk
0:00:38.7]} 32... Qxg7 {[%clk 0:00:46]} 33. Nxb7 {[%clk 0:00:38.2]} 33... Rxb7
{[%clk 0:00:45.2]} 34. Rf1 {[%clk 0:00:37.6]} 34... Rc8 {[%clk 0:00:35.6]} 35.
Rf4 {[%clk 0:00:36.2]} 35... Rbc7 {[%clk 0:00:34.6]} 36. Rg4 {[%clk 0:00:35.3]}
36... Rxc2 {[%clk 0:00:34.6]} 37. Qd4 {[%clk 0:00:30.2]} 37... Qxg4 {[%clk
0:00:27]} 38. Qxg4+ {[%clk 0:00:31.1]} 38... Kf8 {[%clk 0:00:23.3]} 39. Qxb4+
{[%clk 0:00:25.8]} 39... Ke8 {[%clk 0:00:23.3]} 40. Qb5+ {[%clk 0:00:24.4]}
40... Ke7 {[%clk 0:00:22.8]} 41. Qb4+ {[%clk 0:00:14.5]} 41... Kf6 {[%clk
0:00:22]} 42. Qh4+ {[%clk 0:00:14.1]} 42... Ke5 {[%clk 0:00:20.8]} 43. Qxh6
{[%clk 0:00:14]} 43... d4 {[%clk 0:00:21.1]} 44. Qf4# {[%clk 0:00:13.7]} 1-0

[Event "Early-Titled-Tuesday-Blitz-February-20-2024"]
[Site "Chess.com"]
[Date "2024.02.20"]
[Round "8"]
[White "CSB7"]
[Black "Young_Catalan_Player09"]
[Result "1/2-1/2"]
[WhiteElo "2758"]
[BlackElo "2572"]
[TimeControl "180+1"]
[EndTime "9:30:43 PST"]
[Termination "Game drawn - insufficient material"]

1. e4 {[%clk 0:03:00.9]} 1... c5 {[%clk 0:02:57.9]} 2. Nc3 {[%clk 0:03:00.3]}
2... a6 {[%clk 0:02:56.6]} 3. Nf3 {[%clk 0:02:59.2]} 3... d6 {[%clk 0:02:55.6]}
4. d4 {[%clk 0:02:58.8]} 4... cxd4 {[%clk 0:02:56.5]} 5. Nxd4 {[%clk 0:02:59.3]}
5... Nf6 {[%clk 0:02:56.9]} 6. Be2 {[%clk 0:02:47]} 6... e5 {[%clk 0:02:55.3]}
7. Nf3 {[%clk 0:02:43.6]} 7... Be7 {[%clk 0:02:53.6]} 8. Bg5 {[%clk 0:02:41.6]}
8... Be6 {[%clk 0:02:52.4]} 9. Bxf6 {[%clk 0:02:36.1]} 9... Bxf6 {[%clk
0:02:52.6]} 10. Nd5 {[%clk 0:02:36.7]} 10... Nd7 {[%clk 0:02:52.8]} 11. O-O
{[%clk 0:02:34.3]} 11... O-O {[%clk 0:02:51.6]} 12. a4 {[%clk 0:02:25.3]} 12...
Nc5 {[%clk 0:02:47.8]} 13. Nxf6+ {[%clk 0:02:20]} 13... gxf6 {[%clk 0:02:47]}
14. Nd2 {[%clk 0:02:10.4]} 14... d5 {[%clk 0:02:44.8]} 15. exd5 {[%clk
0:02:11.3]} 15... Qxd5 {[%clk 0:02:44]} 16. Bf3 {[%clk 0:01:52.1]} 16... e4
{[%clk 0:02:39.6]} 17. c4 {[%clk 0:01:17.9]} 17... Qe5 {[%clk 0:02:24.4]} 18. b4
{[%clk 0:01:15.7]} 18... exf3 {[%clk 0:02:20.9]} 19. Nxf3 {[%clk 0:01:15.1]}
19... Qc7 {[%clk 0:02:11.5]} 20. bxc5 {[%clk 0:01:14.7]} 20... Qxc5 {[%clk
0:02:11.8]} 21. Qc1 {[%clk 0:01:02.8]} 21... Rad8 {[%clk 0:02:07.4]} 22. Qf4
{[%clk 0:00:47.6]} 22... Qf5 {[%clk 0:01:45.7]} 23. Qxf5 {[%clk 0:00:36.2]}
23... Bxf5 {[%clk 0:01:46.6]} 24. Rfc1 {[%clk 0:00:34.8]} 24... Rd7 {[%clk
0:01:43.9]} 25. h3 {[%clk 0:00:31.8]} 25... Rc8 {[%clk 0:01:43.4]} 26. Ra3
{[%clk 0:00:28.5]} 26... b5 {[%clk 0:01:32.8]} 27. axb5 {[%clk 0:00:29.4]} 27...
axb5 {[%clk 0:01:32.9]} 28. Rac3 {[%clk 0:00:27.8]} 28... Rd3 {[%clk 0:01:06.7]}
29. c5 {[%clk 0:00:21]} 29... b4 {[%clk 0:01:01.8]} 30. Rxd3 {[%clk 0:00:19.9]}
30... Bxd3 {[%clk 0:01:00.1]} 31. Nd4 {[%clk 0:00:20.6]} 31... Kf8 {[%clk
0:00:56.7]} 32. Rd1 {[%clk 0:00:08.9]} 32... Bc4 {[%clk 0:00:55]} 33. c6 {[%clk
0:00:07.1]} 33... Ke7 {[%clk 0:00:50.5]} 34. Rb1 {[%clk 0:00:07.3]} 34... Kd6
{[%clk 0:00:46.3]} 35. Rxb4 {[%clk 0:00:07.5]} 35... Kc5 {[%clk 0:00:46.8]} 36.
Nc2 {[%clk 0:00:08.2]} 36... Rxc6 {[%clk 0:00:44.4]} 37. Rb2 {[%clk 0:00:04.1]}
37... Re6 {[%clk 0:00:44.5]} 38. Ne3 {[%clk 0:00:04]} 38... Bd3 {[%clk
0:00:44.8]} 39. Rd2 {[%clk 0:00:04.1]} 39... Kd4 {[%clk 0:00:43.9]} 40. Kh2
{[%clk 0:00:04.7]} 40... Kc3 {[%clk 0:00:42.7]} 41. Rd1 {[%clk 0:00:05.2]} 41...
f5 {[%clk 0:00:42.5]} 42. Kg3 {[%clk 0:00:04.9]} 42... Rg6+ {[%clk 0:00:41.8]}
43. Kf4 {[%clk 0:00:04.7]} 43... Rb6 {[%clk 0:00:41.5]} 44. Rc1+ {[%clk
0:00:04.9]} 44... Kd2 {[%clk 0:00:41.5]} 45. Rc5 {[%clk 0:00:05.3]} 45... Ke2
{[%clk 0:00:40.5]} 46. Rd5 {[%clk 0:00:05.4]} 46... Be4 {[%clk 0:00:40.3]} 47.
Re5 {[%clk 0:00:04.5]} 47... Kxf2 {[%clk 0:00:40.3]} 48. Nxf5 {[%clk 0:00:04.6]}
48... Bxf5 {[%clk 0:00:39.8]} 49. Rxf5 {[%clk 0:00:03.9]} 49... Rb4+ {[%clk
0:00:38.2]} 50. Kg5+ {[%clk 0:00:03.1]} 50... Kxg2 {[%clk 0:00:38.6]} 51. Rxf7
{[%clk 0:00:03.5]} 51... Kxh3 {[%clk 0:00:38.8]} 52. Rxh7+ {[%clk 0:00:04]}
52... Kg3 {[%clk 0:00:39.5]} 53. Rg7 {[%clk 0:00:04.7]} 53... Rg4+ {[%clk
0:00:39.7]} 54. Kh6 {[%clk 0:00:05.3]} 54... Rxg7 {[%clk 0:00:40.6]} 55. Kxg7
{[%clk 0:00:06.1]} 1/2-1/2

[Event "Early-Titled-Tuesday-Blitz-February-20-2024"]
[Site "Chess.com"]
[Date "2024.02.20"]
[Round "8"]
[White "lrestevez"]
[Black "margarita_2703"]
[Result "0-1"]
[WhiteElo "2197"]
[BlackElo "2387"]
[TimeControl "180+1"]
[EndTime "9:30:45 PST"]
[Termination "margarita_2703 won by resignation"]

1. e4 {[%clk 0:02:46.3]} 1... e5 {[%clk 0:02:54.5]} 2. Nf3 {[%clk 0:02:41.6]}
2... Nc6 {[%clk 0:02:53.6]} 3. Bc4 {[%clk 0:02:41.4]} 3... Nf6 {[%clk
0:02:53.6]} 4. Ng5 {[%clk 0:02:40.4]} 4... d5 {[%clk 0:02:52.4]} 5. exd5 {[%clk
0:02:41.3]} 5... Na5 {[%clk 0:02:53]} 6. Bb5+ {[%clk 0:02:41]} 6... Bd7 {[%clk
0:02:53.2]} 7. Qe2 {[%clk 0:02:38.1]} 7... Bd6 {[%clk 0:02:52.4]} 8. Bxd7+
{[%clk 0:02:31.1]} 8... Qxd7 {[%clk 0:02:53.3]} 9. Nc3 {[%clk 0:02:29.3]} 9...
O-O {[%clk 0:02:45.8]} 10. O-O {[%clk 0:02:26.9]} 10... c6 {[%clk 0:02:41.3]}
11. dxc6 {[%clk 0:02:26.2]} 11... Nxc6 {[%clk 0:02:42.2]} 12. d3 {[%clk
0:02:24.8]} 12... Nd4 {[%clk 0:02:40]} 13. Qd1 {[%clk 0:02:24.4]} 13... Rfe8
{[%clk 0:02:39]} 14. Nge4 {[%clk 0:02:23.1]} 14... Nxe4 {[%clk 0:02:38.1]} 15.
Nxe4 {[%clk 0:02:23.7]} 15... f5 {[%clk 0:02:38.7]} 16. Nxd6 {[%clk 0:02:21.3]}
16... Qxd6 {[%clk 0:02:39.6]} 17. c3 {[%clk 0:02:19.1]} 17... Ne6 {[%clk
0:02:39.3]} 18. Be3 {[%clk 0:02:16.1]} 18... Rad8 {[%clk 0:02:38.7]} 19. Qb3
{[%clk 0:02:16]} 19... b6 {[%clk 0:02:37.3]} 20. Rad1 {[%clk 0:02:15.3]} 20...
Kh8 {[%clk 0:02:36.6]} 21. d4 {[%clk 0:02:13.7]} 21... e4 {[%clk 0:02:36.1]} 22.
Bc1 {[%clk 0:02:00]} 22... Qe7 {[%clk 0:02:29.4]} 23. Rfe1 {[%clk 0:01:56.7]}
23... Qf6 {[%clk 0:02:27.3]} 24. Qa4 {[%clk 0:01:49.4]} 24... Qf7 {[%clk
0:02:25]} 25. Qc2 {[%clk 0:01:34.8]} 25... h6 {[%clk 0:02:19.7]} 26. Qe2 {[%clk
0:01:30.5]} 26... Qg6 {[%clk 0:02:17.5]} 27. f4 {[%clk 0:01:28.5]} 27... Nc7
{[%clk 0:02:13.3]} 28. Kh1 {[%clk 0:01:26.3]} 28... Nd5 {[%clk 0:02:10.9]} 29.
g3 {[%clk 0:01:25.6]} 29... Nf6 {[%clk 0:02:09.5]} 30. c4 {[%clk 0:01:19.7]}
30... Ng4 {[%clk 0:02:08.9]} 31. d5 {[%clk 0:01:14.6]} 31... Qd6 {[%clk
0:02:08.4]} 32. h3 {[%clk 0:01:11.3]} 32... Nf6 {[%clk 0:02:07.2]} 33. Be3
{[%clk 0:01:11.4]} 33... Rc8 {[%clk 0:02:06.7]} 34. b3 {[%clk 0:01:09.6]} 34...
Kh7 {[%clk 0:02:06.8]} 35. Kg2 {[%clk 0:01:09.1]} 35... g6 {[%clk 0:02:06.2]}
36. Bd4 {[%clk 0:01:06.5]} 36... Nh5 {[%clk 0:02:06.5]} 37. Be5 {[%clk
0:01:05.8]} 37... Rxe5 {[%clk 0:02:06.7]} 38. fxe5 {[%clk 0:01:06.7]} 38... Qxe5
{[%clk 0:02:07.6]} 39. Qe3 {[%clk 0:00:53.1]} 39... Re8 {[%clk 0:02:04.1]} 40.
d6 {[%clk 0:00:52.5]} 40... f4 {[%clk 0:02:04.3]} 41. gxf4 {[%clk 0:00:51.6]}
41... Nxf4+ {[%clk 0:02:05.2]} 42. Kh1 {[%clk 0:00:49.2]} 42... Qf5 {[%clk
0:01:49.7]} 43. d7 {[%clk 0:00:46]} 43... Rd8 {[%clk 0:01:49.1]} 44. Rf1 {[%clk
0:00:42.7]} 44... g5 {[%clk 0:01:42.7]} 45. Rd5 {[%clk 0:00:34.3]} 45... Qe6
{[%clk 0:01:34.6]} 46. Rd4 {[%clk 0:00:34.5]} 46... Rxd7 {[%clk 0:01:32.6]} 47.
Qxe4+ {[%clk 0:00:23.7]} 47... Qxe4+ {[%clk 0:01:27.8]} 48. Rxe4 {[%clk
0:00:24.6]} 48... Nxh3 {[%clk 0:01:26.8]} 49. Kh2 {[%clk 0:00:21.9]} 49... Nf4
{[%clk 0:01:26.5]} 50. Rf2 {[%clk 0:00:20.7]} 50... Kg6 {[%clk 0:01:25.6]} 51.
Kg3 {[%clk 0:00:19.6]} 51... h5 {[%clk 0:01:24.1]} 52. Rexf4 {[%clk 0:00:19.6]}
52... gxf4+ {[%clk 0:01:23.1]} 53. Kxf4 {[%clk 0:00:19.9]} 53... Rf7+ {[%clk
0:01:22.3]} 54. Kg3 {[%clk 0:00:19.4]} 54... h4+ {[%clk 0:01:21.4]} 55. Kg2
{[%clk 0:00:19.1]} 55... Rxf2+ {[%clk 0:01:07.7]} 56. Kxf2 {[%clk 0:00:18.7]}
56... Kf5 {[%clk 0:01:08.6]} 57. Kg2 {[%clk 0:00:15.7]} 57... Ke4 {[%clk
0:01:00.1]} 58. Kh3 {[%clk 0:00:16.1]} 58... Kd3 {[%clk 0:00:59.8]} 59. Kxh4
{[%clk 0:00:16.6]} 59... Kc3 {[%clk 0:01:00]} 60. Kg3 {[%clk 0:00:16.7]} 60...
a5 {[%clk 0:00:59.1]} 61. Kf4 {[%clk 0:00:16.9]} 61... Kb2 {[%clk 0:00:59.4]}
62. Ke3 {[%clk 0:00:08.4]} 62... Kxa2 {[%clk 0:00:58.9]} 63. b4 {[%clk 0:00:09]}
63... axb4 {[%clk 0:00:58.6]} 64. Kd3 {[%clk 0:00:09.7]} 64... b3 {[%clk
0:00:58.5]} 65. Kd4 {[%clk 0:00:10.1]} 65... b2 {[%clk 0:00:58.8]} 0-1